[Event "Titled Tuesday Blitz November 15 Early 2022"]
[White "Yu, Yangyi"]
[Black "Samunenkov, Ihor"]
[WhiteFideId "8603820"]
[BlackFideId "14187086"]
[WhiteElo "2808"]
[BlackElo "2441"]
[Result "1/2-1/2"]
[Round "11"]
[TimeControl "180+1"]
[Date "2022.11.15"]
[WhiteClock "0:00:20"]
[BlackClock "0:00:07"]

1. e4 {[%clk 0:03:00]}  c6 {[%clk 0:02:59]} 2. d4 {[%clk 0:03:00]}  d5 {[%clk 0:03:00]} 3. e5 {[%clk 0:03:01]}  Bf5 {[%clk 0:03:00]} 4. Nf3 {[%clk 0:03:02]}  e6 {[%clk 0:03:00]} 5. c3 {[%clk 0:03:02]}  c5 {[%clk 0:02:57]} 6. Be2 {[%clk 0:03:02]}  Nc6 {[%clk 0:02:57]} 7. O-O {[%clk 0:03:02]}  Bg6 {[%clk 0:02:58]} 8. a3 {[%clk 0:03:00]}  cxd4 {[%clk 0:02:48]} 9. cxd4 {[%clk 0:03:00]}  Nge7 {[%clk 0:02:48]} 10. Nh4 {[%clk 0:03:00]}  Nf5 {[%clk 0:02:41]} 11. Nxf5 {[%clk 0:03:00]}  Bxf5 {[%clk 0:02:42]} 12. Nc3 {[%clk 0:03:00]}  Be7 {[%clk 0:02:41]} 13. Be3 {[%clk 0:03:00]}  O-O {[%clk 0:02:34]} 14. Bg4 {[%clk 0:03:00]}  Bg6 {[%clk 0:02:24]} 15. f4 {[%clk 0:02:59]}  Qd7 {[%clk 0:02:18]} 16. Qf3 {[%clk 0:02:50]}  f5 {[%clk 0:02:11]} 17. exf6 {[%clk 0:02:50]}  Rxf6 {[%clk 0:02:11]} 18. Rad1 {[%clk 0:02:41]}  Raf8 {[%clk 0:02:09]} 19. Qh3 {[%clk 0:02:40]}  Bf5 {[%clk 0:02:04]} 20. Bxf5 {[%clk 0:02:33]}  exf5 {[%clk 0:01:53]} 21. Qf3 {[%clk 0:02:32]}  Rd6 {[%clk 0:01:53]} 22. Rfe1 {[%clk 0:02:31]}  Bf6 {[%clk 0:01:51]} 23. Bf2 {[%clk 0:02:32]}  Qd8 {[%clk 0:01:38]} 24. g3 {[%clk 0:02:20]}  g6 {[%clk 0:01:37]} 25. Kg2 {[%clk 0:02:19]}  Kg7 {[%clk 0:01:37]} 26. Nb5 {[%clk 0:02:15]}  Rd7 {[%clk 0:01:36]} 27. Re6 {[%clk 0:02:15]}  Re8 {[%clk 0:01:28]} 28. Rxe8 {[%clk 0:01:53]}  Qxe8 {[%clk 0:01:28]} 29. Nc3 {[%clk 0:01:53]}  Qe6 {[%clk 0:01:20]} 30. h3 {[%clk 0:01:50]}  Qd6 {[%clk 0:01:07]} 31. g4 {[%clk 0:01:45]}  Qe6 {[%clk 0:01:01]} 32. Re1 {[%clk 0:01:44]}  Qf7 {[%clk 0:00:59]} 33. Qd3 {[%clk 0:01:39]}  Bd8 {[%clk 0:00:49]} 34. Ne2 {[%clk 0:01:29]}  Re7 {[%clk 0:00:45]} 35. gxf5 {[%clk 0:01:19]}  Qxf5 {[%clk 0:00:45]} 36. Qxf5 {[%clk 0:01:18]}  gxf5 {[%clk 0:00:45]} 37. Ng3 {[%clk 0:01:19]}  Rxe1 {[%clk 0:00:40]} 38. Bxe1 {[%clk 0:01:20]}  Kg6 {[%clk 0:00:40]} 39. Ne2 {[%clk 0:01:15]}  Bf6 {[%clk 0:00:40]} 40. Bf2 {[%clk 0:01:10]}  Kf7 {[%clk 0:00:40]} 41. Kf3 {[%clk 0:01:09]}  Ke6 {[%clk 0:00:40]} 42. Ke3 {[%clk 0:01:09]}  Be7 {[%clk 0:00:37]} 43. Kd3 {[%clk 0:01:07]}  Bf6 {[%clk 0:00:37]} 44. Be1 {[%clk 0:01:04]}  Be7 {[%clk 0:00:35]} 45. Bc3 {[%clk 0:01:01]}  Bd6 {[%clk 0:00:34]} 46. Bd2 {[%clk 0:01:01]}  Be7 {[%clk 0:00:33]} 47. Ng1 {[%clk 0:01:00]}  Bf6 {[%clk 0:00:30]} 48. Nf3 {[%clk 0:01:01]}  Bg7 {[%clk 0:00:31]} 49. a4 {[%clk 0:00:59]}  Bf6 {[%clk 0:00:30]} 50. b4 {[%clk 0:00:59]}  a6 {[%clk 0:00:27]} 51. Be1 {[%clk 0:00:55]}  b5 {[%clk 0:00:27]} 52. axb5 {[%clk 0:00:53]}  axb5 {[%clk 0:00:28]} 53. Bd2 {[%clk 0:00:43]}  Be7 {[%clk 0:00:26]} 54. Ng5+ {[%clk 0:00:43]}  Kf6 {[%clk 0:00:13]} 55. Nxh7+ {[%clk 0:00:41]}  Kg6 {[%clk 0:00:13]} 56. Ng5 {[%clk 0:00:42]}  Bxb4 {[%clk 0:00:13]} 57. Bxb4 {[%clk 0:00:33]}  Nxb4+ {[%clk 0:00:14]} 58. Kc3 {[%clk 0:00:34]}  Nc6 {[%clk 0:00:14]} 59. Ne6 {[%clk 0:00:34]}  Kh5 {[%clk 0:00:10]} 60. Ng7+ {[%clk 0:00:31]}  Kg6 {[%clk 0:00:10]} 61. Ne6 {[%clk 0:00:28]}  Kh5 {[%clk 0:00:10]} 62. Nc7 {[%clk 0:00:28]}  b4+ {[%clk 0:00:10]} 63. Kd3 {[%clk 0:00:29]}  Ne7 {[%clk 0:00:07]} 64. Na6 {[%clk 0:00:21]}  Nc6 {[%clk 0:00:05]} 65. Nc7 {[%clk 0:00:20]}  Ne7 {[%clk 0:00:06]} 66. Na6 {[%clk 0:00:20]}  Nc6 {[%clk 0:00:07]} 67. Nc7 {[%clk 0:00:20]} 1/2-1/2


[Site "https://www.chess.com"]